Cogmind - Beta 15 @@@ ROGUE MODE // 2025.10.16 @ 04:51:38 Player: shapeshifter Result: Destroyed self via exploding Plasma Injector Performance ------------- Evolutions (1) 500 Regions Visited (6) 1200 Robots Destroyed (65) 325 Value Destroyed (1658) 1658 Prototype IDs (23) 460 Alien Tech Used (0) 0 Bonus (416) 416 TOTAL SCORE: 4559 Bonus ------- Follower Combat Kills 116 Aligned with FarCom 300 Cogmind --------- Core Integrity 0/400 Matter 204/300 Energy 100/100 System Corruption 0% Temperature Cool (12) Movement Rolling (105) Ox1 Location -8/Mines Parts ------- > --- POWER (1) -------- (None) > --- PROPULSION (2) --- Armored Wheel Armored Wheel > --- UTILITY (4) ------ Heat Sink Large Storage Unit Improved Targeting Computer Insulated Plating > --- WEAPON (2) ------- Rocket Launcher > --- INVENTORY (15) --- Armored Wheel Armored Wheel Armored Wheel High-capacity Storage Unit Huge Storage Unit High-capacity Matter Pod (200) High-capacity Matter Pod (200) Cloak of Protection Insulated Plating Skeleton Box Improved Trap Extractor (0/6) Longsword +1 Peak State ------------ > --- POWER ------------ Light Ion Engine > --- PROPULSION ------- Armored Wheel Armored Wheel > --- UTILITY ---------- Improved Heat Sink Large Storage Unit Improved Targeting Computer Insulated Plating > --- WEAPON ----------- Particle Gun Particle Gun > --- INVENTORY -------- Armored Wheel Armored Wheel Armored Wheel Armored Wheel Armored Wheel Heat Sink High-capacity Storage Unit Huge Storage Unit Insulated Plating Insulated Plating Insulated Plating Improved Trap Extractor [Rating: 20] Favorites ----------- Power Light Ion Engine Engine Light Ion Engine Propulsion Light Treads Treads Light Treads Wheel Armored Wheel Utility Improved Targeting Computer Device Heat Sink Storage Large Storage Unit Processor Improved Targeting Computer Protection Insulated Plating Weapon Particle Gun Energy Gun Particle Gun Energy Cannon Ion Cannon Ballistic Gun Assault Rifle Launcher Rocket Launcher Build | -11 -10 -10 -9 -9 -9 -8 ------- Run | Yrd Mat Min Mat Min Exi Min Slots Evolved 2 | . . . 2 . . . Power . | . . . . . . . Propulsion . | . . . . . . . Utility 2 | . . . 2 . . . Weapon . | . . . . . . . Parts Attached 38 | 7 1 5 18 3 1 3 Power 3 | 1 1 . 1 . . . Engine 3 | 1 1 . 1 . . . Core . | . . . . . . . Reactor . | . . . . . . . Propulsion 11 | 2 . 2 4 1 . 2 Treads 7 | 2 . 2 2 1 . . Leg . | . . . . . . . Wheel 4 | . . . 2 . . 2 Hover . | . . . . . . . Flight . | . . . . . . . Utility 12 | 2 . . 7 2 1 . Device 4 | 1 . . 2 1 . . Storage 3 | 1 . . 1 . 1 . Processor 1 | . . . 1 . . . Hackware . | . . . . . . . Protection 4 | . . . 3 1 . . Artifact . | . . . . . . . Weapon 12 | 2 . 3 6 . . 1 Energy Gun 6 | . . 2 4 . . . Energy Cannon 1 | . . 1 . . . . Ballistic Gun 3 | 2 . . 1 . . . Ballistic Cannon . | . . . . . . . Launcher 2 | . . . 1 . . 1 Special Weapon . | . . . . . . . Impact Weapon . | . . . . . . . Slashing Weapon . | . . . . . . . Piercing Weapon . | . . . . . . . Special Melee Weapon . | . . . . . . . Unidentified Prototypes . | . . . . . . . Parts Lost 14 | . 1 2 6 1 . 4 Power 3 | . . 1 1 . . 1 Propulsion 2 | . . . 1 . . 1 Utility 4 | . . 1 2 1 . . Weapon 5 | . 1 . 2 . . 2 Highest Loss Streak 2 | . 1 2 2 1 . 2 To Critical Strikes . | . . . . . . . Average Backups 9 | 3 6 6 8 10 13 14 Power . | . 1 . . . . . Propulsion 4 | 1 2 2 4 5 5 4 Utility 4 | . 1 2 4 5 6 7 Weapon . | . 1 1 . . 1 1 Tool/Special . | . . . . . . . Unused Backups 17 | . . . 2 . 4 11 Power 3 | . . . . . 3 . Propulsion 5 | . . . 2 . . 3 Utility 7 | . . . . . 1 6 Weapon 1 | . . . . . . 1 Tool/Special 1 | . . . . . . 1 Average Slot Usage (%) 91 | . 96 92 84 99 100 77 Engine 9 | . 13 13 9 11 11 . Treads 20 | . 28 28 13 22 22 19 Wheel 2 | . . . 7 . . 2 Device 8 | . 13 7 5 7 11 11 Storage 11 | . 14 14 11 11 11 11 Processor 7 | . . . 9 11 11 11 Protection 8 | . . . 7 14 11 11 Energy Gun 15 | . . 14 16 22 22 9 Energy Cannon 2 | . . 12 2 . . . Ballistic Gun 3 | . 26 1 1 . . . Peak Build Rating 20 | 7 7 14 20 17 19 19 Average Rating 14 | 5 6 12 15 16 17 16 On Entrance 11 | . 7 6 12 16 17 19 Naked Turns . | . . . . . . . Heaviest Build 35 | 12 14 20 35 35 33 31 Greatest Support 43 | 40 40 42 42 43 43 43 Greatest Overweight (x) 1 | . . . 1 . . 1 Average Overweight (x) . | . . . . . . . Largest Inventory Capacity 15 | 8 8 8 15 15 15 15 Average Capacity 12 | 7 8 8 12 15 15 15 Most Carried 15 | 5 8 8 13 12 15 15 Average Carried 9 | 3 6 6 9 10 13 14 Final Capacity 15 | 8 8 8 15 15 15 15 Final Carried 15 | 4 8 6 11 11 15 12 Class Distribution -------------------- 81% | Mutant 18% | Scavenger-Mutant Dominant Class ---------------- Mutant | -10/Materials Mutant | -10/Mines Mutant | -9/Materials Scavenger-Mutant | -9/Mines Mutant | -9/Exiles Mutant | -8/Mines Resources | -11 -10 -10 -9 -9 -9 -8 ----------- Run | Yrd Mat Min Mat Min Exi Min Matter Collected 978 | 228 138 154 346 100 . 12 Remotely . | . . . . . . . Salvage Created 1530 | 10 339 35 737 222 . 187 Parts 118 | 4 23 9 61 10 . 11 Haulers Intercepted . | . . . . . . . Recyclers Shooed 2 | . 1 . 1 . . . Parts Field Recycled . | . . . . . . . Retrieved Matter . | . . . . . . . Parts Self-Destructed . | . . . . . . . Prevented . | . . . . . . . Kills | -11 -10 -10 -9 -9 -9 -8 ------- Run | Yrd Mat Min Mat Min Exi Min Combat Hostiles Destroyed 56 | . 9 3 26 8 . 10 Guns 36 | . 9 2 14 8 . 3 Cannons 5 | . . 1 4 . . . AOE 15 | . . . 8 . . 7 Classes Destroyed 6 | 1 3 . 1 . . 1 Tunneler 3 | 1 . 1 1 . . . Watcher 6 | . 2 . 4 . . . Swarmer 26 | . 3 3 12 3 . 5 Grunt 20 | . 6 . 5 5 . 4 Sentry 9 | . . . 9 . . . Hunter 1 | . . . . . . 1 Best Kill Streak 8 | 1 5 2 8 3 . 4 Combat Bots Only 8 | . 5 2 8 3 . 4 Max Kills in Single Turn 3 | 1 1 1 3 1 . 3 Gunslinging 1 | . . . 1 . . . Exploded 3 | . . . 3 . . 3 Melee . | . . . . . . . Uniques/NPCs Destroyed . | . . . . . . . Combat | -11 -10 -10 -9 -9 -9 -8 -------- Run | Yrd Mat Min Mat Min Exi Min Hostile Shots Fired 293 | . 59 25 129 44 . 36 Missed 88 | . 17 3 40 11 . 17 Hits 205 | . 42 22 89 33 . 19 Projectile 205 | . 42 22 89 33 . 19 AOE 1 | . . . . . . 1 Critical Strikes 9 | . . . 6 2 . 1 Damage Taken 2660 | . 454 235 1217 383 . 371 Core 550 | . 98 33 243 53 . 123 Absorbed by Shields . | . . . . . . . Core Remaining (%) 73 | 100 . 47 . . . . Volleys Fired 149 | 7 28 10 68 18 . 18 Largest 2 | 2 2 2 2 2 . 2 Hottest 130 | 40 40 123 130 130 . 130 Shots Fired 265 | 14 57 20 118 36 . 20 Gun 216 | 14 57 10 87 36 . 12 Cannon 27 | . . 10 17 . . . Launcher 22 | . . . 14 . . 8 Special . | . . . . . . . Kinetic 83 | 14 57 . 12 . . . Thermal 160 | . . 20 92 36 . 12 Explosive 22 | . . . 14 . . 8 Electromagnetic . | . . . . . . . Robot Hit Streak 13 | 2 12 6 13 6 . 6 Robot Miss Streak 5 | 3 5 2 3 2 . 1 Penetration Max . | . . . . . . . Secondary Targets 7 | . 3 . 1 2 . 1 Max Gunslinging Chain 1 | . 1 . 1 1 . 1 Shots Hit Robots 158 | 6 34 13 69 23 . 13 Core Hits 94 | 1 17 5 43 13 . 15 Critical Kills . | . . . . . . . Critical Parts Destroyed . | . . . . . . . Critical Strikes 6 | . . . 1 4 . 1 Burn 6 | . . . 1 4 . 1 Melee Attacks . | . . . . . . . Impact . | . . . . . . . Slashing . | . . . . . . . Piercing . | . . . . . . . Sneak Attacks . | . . . . . . . Combat Hostiles . | . . . . . . . Follow-up Attacks . | . . . . . . . Damage Inflicted 3645 | 58 398 260 1658 393 . 878 Guns 2004 | 58 395 123 921 393 . 114 Cannons 345 | . . 137 208 . . . Explosions 1293 | . . . 529 . . 764 Melee . | . . . . . . . Ramming 3 | . 3 . . . . . Kinetic 573 | 58 395 . 120 . . . Thermal 1776 | . . 260 1009 393 . 114 Explosive 1293 | . . . 529 . . 764 Electromagnetic . | . . . . . . . Impact . | . . . . . . . Slashing . | . . . . . . . Piercing . | . . . . . . . Highest Corruption 1 | . 1 1 . . . . Average Corruption 1 | . 1 1 . . . . Corruption Purged . | . . . . . . . Corruption Blocked . | . . . . . . . Effects 8 | . 2 6 . . . . Matter Fused 4 | . 1 3 . . . . Heat Flow Errors 1 | . . 1 . . . . Data Loss (minor) 1 | . . 1 . . . . Misfires 1 | . 1 . . . . . Alerts 1 | . . 1 . . . . Overload Shots . | . . . . . . . Overflow Damage 38 | . . . 8 . . 30 Projectiles . | . . . . . . . Explosions 38 | . . . 8 . . 30 Melee . | . . . . . . . Knockbacks . | . . . . . . . Impact . | . . . . . . . Kinetic . | . . . . . . . Secondary . | . . . . . . . Self-Inflicted Damage 188 | . . . 114 . . 74 Shots 3 | . . . 1 . . 2 Rammed 1 | . 1 . . . . . Targets Rammed 1 | . 1 . . . . . Kicked . | . . . . . . . Crushed . | . . . . . . . Highest Temperature 435 | . 12 252 177 435 . 158 Average Temperature 116 | . 6 102 65 206 . 104 Received Heat Transfer 936 | . 219 78 351 195 . 93 Effects 5 | . . . . 5 . . Shutdowns 1 | . . . . 1 . . Energy Bleed 1 | . . . . 1 . . Matter Decay 1 | . . . . 1 . . Damage (major) 2 | . . . . 2 . . Siege Activations . | . . . . . . . Martial Activations . | . . . . . . . Shielding Activations . | . . . . . . . Robots Disrupted . | . . . . . . . Combat Hostiles . | . . . . . . . Robots Corrupted . | . . . . . . . Combat Hostiles . | . . . . . . . Parts Fried . | . . . . . . . Impact Corruptions . | . . . . . . . Robots Melted . | . . . . . . . Combat Hostiles . | . . . . . . . Parts Melted 9 | . . . 4 3 . 2 Heat Transferred 4403 | . . 481 2331 1221 . 370 Parts Sabotaged . | . . . . . . . Parts Stolen . | . . . . . . . Parts Stripped . | . . . . . . . Power Chain Reactions . | . . . . . . . Alert | -11 -10 -10 -9 -9 -9 -8 ------- Run | Yrd Mat Min Mat Min Exi Min Maximum Alert Level 1 | . 1 . 1 1 . . Low Security (%) 71 | 100 94 100 22 99 . 100 Level 1 28 | . 5 . 77 . . . Level 2 . | . . . . . . . Level 3 . | . . . . . . . Level 4 . | . . . . . . . Level 5 . | . . . . . . . High Security . | . . . . . . . Max Security . | . . . . . . . Peak Influence 382 | 5 210 74 382 205 . 138 Initial 120 | . . 72 13 120 . . Average 119 | . 61 27 243 80 . 14 Influence Increases 1887 | 5 300 168 904 205 . 305 Destroy 0b10 Robot/C 1240 | . 180 120 580 160 . 200 Destroy 0b10 Robot/NC 45 | 5 10 5 25 . . . Destroy Leader 282 | . 34 20 168 30 . 30 Allied During Kill 46 | . . 22 24 . . . Successful Hack 21 | . 16 . 5 . . . Select Force Hacks 30 | . 30 . . . . . Disable Machine 90 | . . . 45 15 . 30 Destroy Structure 103 | . . 1 57 . . 45 Lose Combat Pursuer 30 | . 30 . . . . . Influence Decreases 1696 | 5 114 320 630 513 . 114 Entered New Map 323 | . . 114 21 188 . . Time Decay 1213 | 5 104 206 509 315 . 74 Lost Part 120 | . 10 . 60 10 . 40 Lost Ally 40 | . . . 40 . . . Squads Dispatched 5 | . 2 . 3 . . . Investigation 2 | . 1 . 1 . . . Extermination . | . . . . . . . Reinforcement 3 | . 1 . 2 . . . Assault . | . . . . . . . Garrison . | . . . . . . . Intercept . | . . . . . . . Searches Triggered . | . . . . . . . Construction Impeded 1 | . . . 1 . . . Haulers Reinforced . | . . . . . . . Active Scanning Responses . | . . . . . . . Cargo Convoy Interrupts . | . . . . . . . Stealth | -11 -10 -10 -9 -9 -9 -8 --------- Run | Yrd Mat Min Mat Min Exi Min Distress Signals 6 | . 2 . 4 . . . Communications Jammed . | . . . . . . . Distress Signals . | . . . . . . . Times Spotted 81 | . 18 6 37 8 . 12 Peak Tracking Total 8 | . 5 3 8 3 . 4 Tactical Retreats 2 | . 2 . . . . . Traps | -11 -10 -10 -9 -9 -9 -8 ------- Run | Yrd Mat Min Mat Min Exi Min Traps Triggered 5 | . 3 . 2 . . . Indirectly . | . . . . . . . Trap Hack Attempts . | . . . . . . . Triggered . | . . . . . . . Disarmed . | . . . . . . . Reprogrammed . | . . . . . . . Reused . | . . . . . . . Traps Extracted . | . . . . . . . Installed . | . . . . . . . Triggered . | . . . . . . . Machines | -11 -10 -10 -9 -9 -9 -8 ---------- Run | Yrd Mat Min Mat Min Exi Min Machines Disabled 6 | . . . 3 1 . 2 Max in Single Turn 2 | . . . 1 1 . 2 Machines Repaired . | . . . . . . . Machines Dismantled . | . . . . . . . Machines Sabotaged . | . . . . . . . Overloaded Fab Kills . | . . . . . . . Hacking | -11 -10 -10 -9 -9 -9 -8 --------- Run | Yrd Mat Min Mat Min Exi Min Machines Accessed 13 | . 4 1 6 . 2 . Terminals 9 | . 3 . 6 . . . Fabricators . | . . . . . . . Repair Stations . | . . . . . . . Recycling Units 1 | . 1 . . . . . Scanalyzers . | . . . . . . . Garrison Access . | . . . . . . . Total Hacks 29 | . 11 1 15 . 2 . Successful 18 | . 6 1 9 . 2 . Failed 11 | . 5 . 6 . . . Catastrophic 2 | . 1 . 1 . . . Database Lockouts . | . . . . . . . Manual 26 | . 8 . 17 . 1 . Terminals 24 | . 9 . 15 . . . Fabricators . | . . . . . . . Repair Stations . | . . . . . . . Recycling Units 2 | . 2 . . . . . Scanalyzers . | . . . . . . . Garrison Access . | . . . . . . . Terminal Hacks 6 | . 2 1 1 . 2 . Record 1 | . . . . . 1 . Open Door 1 | . . 1 . . . . Branch Access Points 1 | . 1 . . . . . Zone Layout 2 | . 1 . 1 . . . Proto ID Catalog 1 | . . . . . 1 . Fabricator Hacks . | . . . . . . . Repair Station Hacks . | . . . . . . . Recycling Unit Hacks 1 | . 1 . . . . . Retrieve Components 1 | . 1 . . . . . Scanalyzer . | . . . . . . . Garrison Access Hacks . | . . . . . . . Unauthorized Hacks 11 | . 3 . 8 . . . Terminals 10 | . 2 . 8 . . . Botnet 4 | . 1 . 3 . . . Skim 6 | . 1 . 5 . . . Fabricators . | . . . . . . . Repair Stations . | . . . . . . . Recycling Units 1 | . 1 . . . . . Tunnel 1 | . 1 . . . . . Scanalyzers . | . . . . . . . Garrison Access . | . . . . . . . Data Cores Recovered . | . . . . . . . Used . | . . . . . . . Hacking Detections 8 | . 3 . 5 . . . Full Trace Events 1 | . . . 1 . . . Feedback Events . | . . . . . . . Feedback Blocked . | . . . . . . . Robot Schematics Acquired . | . . . . . . . Robots Built . | . . . . . . . Authchips . | . . . . . . . Time . | . . . . . . . Total Robot Build Rating . | . . . . . . . Part Schematics Acquired . | . . . . . . . Parts Built . | . . . . . . . Authchips . | . . . . . . . Time . | . . . . . . . Total Part Build Rating . | . . . . . . . Parts Repaired . | . . . . . . . Time . | . . . . . . . Parts Recycled . | . . . . . . . Recycled Matter . | . . . . . . . Retrieved Matter . | . . . . . . . Retrieved Components 1 | . 1 . . . . . Parts Scanalyzed . | . . . . . . . Part Schematics Acquired . | . . . . . . . Parts Damaged . | . . . . . . . Bothacking | -11 -10 -10 -9 -9 -9 -8 ------------ Run | Yrd Mat Min Mat Min Exi Min Used RIF Installer . | . . . . . . . Robots Hacked . | . . . . . . . Non-combat . | . . . . . . . Combat . | . . . . . . . Robot Hacks Applied . | . . . . . . . Relay Couplers Released . | . . . . . . . Fabnet Peak Effective % . | . . . . . . . Robots Rewired . | . . . . . . . Allies Hacked . | . . . . . . . Hacks Repelled . | . . . . . . . Allies | -11 -10 -10 -9 -9 -9 -8 -------- Run | Yrd Mat Min Mat Min Exi Min Total Allies 3 | . . 3 . . . . Largest Group 3 | . . 3 3 . . . Highest-Rated Group 40 | . . 40 40 . . . Highest-Rated Ally 16 | . . 16 16 . . . Total Orders . | . . . . . . . Ally Attacks 35 | . . 13 22 . . . Total Damage 343 | . . 146 197 . . . Kills 6 | . . 3 3 . . . Allies Corrupted . | . . . . . . . Allies Melted . | . . . . . . . Intel | -11 -10 -10 -9 -9 -9 -8 ------- Run | Yrd Mat Min Mat Min Exi Min Active Infowar (turns) 696 | 4 394 298 . . . . Seismic 696 | 4 394 298 . . . . Robot Analysis Total . | . . . . . . . Derelict Logs Recovered 4 | . . 2 . 2 . . Drone Launches . | . . . . . . . Drone Recoveries . | . . . . . . . Exploration | -11 -10 -10 -9 -9 -9 -8 ------------- Run | Yrd Mat Min Mat Min Exi Min Turns Passed 4511 | 143 417 591 1431 920 557 452 Spaces Moved 2322 | 72 204 339 603 492 341 271 Core 8 | 8 . . . . . . Treads 1969 | 64 204 339 297 492 341 232 Legs . | . . . . . . . Wheels 345 | . . . 306 . . 39 Hover . | . . . . . . . Flight . | . . . . . . . Fastest Speed 50 | 50 160 152 90 160 160 105 Average Speed 152 | 147 160 152 138 160 160 152 Slowest Speed 240 | 160 160 160 240 160 160 160 Overloaded Moves . | . . . . . . . Propulsion Burnouts . | . . . . . . . Robots Hopped . | . . . . . . . Potential Cave-ins . | . . . . . . . Cave-ins Triggered . | . . . . . . . Exploration Rate (%) 61 | 6 42 97 60 98 69 57 Regions Visited 6 Branch Regions 4 Pre-discovered Areas 7 | . 1 1 3 1 1 . Known Exits Taken 1 | . 1 . . . . . Unknown Exits Taken 5 | 1 . 1 1 1 1 . Scrap Searched 4 | . . 1 . 3 . . Spaces Dug 14 | . . . . . . 14 Terrain Destroyed 144 | . . 1 78 . . 65 Melee . | . . . . . . . Projectile 4 | . . 1 3 . . . AOE 140 | . . . 75 . . 65 Terrain Rammed . | . . . . . . . Walls Destroyed . | . . . . . . . Machines Disabled . | . . . . . . . Actions | -11 -10 -10 -9 -9 -9 -8 --------- Run | Yrd Mat Min Mat Min Exi Min Total 3055 | 96 244 393 1085 589 355 293 Wait 468 | . . 34 362 72 . . Move 2316 | 71 203 338 602 491 340 271 Hop . | . . . . . . . Pick Up 55 | 11 8 1 23 3 9 . Fast Attach 2 | . . 1 1 . . . Attach 34 | 7 4 2 16 2 . 3 Detach 1 | . . . 1 . . . Swap 7 | . . 3 2 1 1 . Drop 22 | . . 4 10 2 5 1 Fire 149 | 7 28 10 68 18 . 18 Melee . | . . . . . . . Ram . | . . . . . . . Kick . | . . . . . . . Crush 1 | . 1 . . . . . Escape Stasis . | . . . . . . . Rewire . | . . . . . . . Trap . | . . . . . . . Miscellaneous . | . . . . . . . Route ------- -11/Scrapyard -10/Materials (discovered 4 exits: *Mat x2 / *Min x2) -10/Mines (discovered 3 exits: *Mat x2 / *Sub) -9/Materials (discovered 4 exits: *Mat x3 / [*Min]) -9/Mines (discovered 3 exits: *Mat x2 / *Exi) -9/Exiles -8/Mines (discovered 1 exit: *Mat) History --------- Turn | Location | Event 7 | -11/Scrapyard | Discovered new exit (range 15) 144 | -11/Scrapyard | Entered Materials 213 | -10/Materials | Identified exit to Mines 317 | -10/Materials | Build established: Mutant 325 | -10/Materials | Discovered new exit (range 7) 517 | -10/Materials | Discovered new exit (range 17) 561 | -10/Materials | Entered Mines 572 | -10/Mines | Assisted by bots powering up and referring to "LRC-V3" 603 | -10/Mines | Met a Derelict who couldn't figure out how to use a Trap Extractor 685 | -10/Mines | Learned location of Storage (-8) 738 | -10/Mines | Discovered new exit (range 5) 772 | -10/Mines | Identified exit to Subcaves 1028 | -10/Mines | Discovered new exit (range 6) 1036 | -10/Mines | Core integrity fell below 50% 1152 | -10/Mines | Entered Materials 1152 | -9/Materials | Accompanied by 3 allies 1152 | -9/Materials | Evolved 2 slots: Utility x2 1438 | -9/Materials | Lost 3 allies 1442 | -9/Materials | Destroyed 8 combat bots 1593 | -9/Materials | Discovered new exit (range 11) 1936 | -9/Materials | Discovered new exit (range 13) 2064 | -9/Materials | Core integrity fell below 50% 2093 | -9/Materials | Discovered new exit (range 9) 2316 | -9/Materials | Learned 4 Recycling zone layouts 2374 | -9/Materials | Identified exit to Materials 2422 | -9/Materials | Learned location of Zion (-6) 2458 | -9/Materials | Learned Storage trap positions 2542 | -9/Materials | Build established: Scavenger-Mutant 2583 | -9/Materials | Entered Mines 2727 | -9/Mines | Discovered exit to Materials (range 6) 3024 | -9/Mines | Learned Materials trap positions 3171 | -9/Mines | Received a Rocket Launcher from a helpful Derelict 3251 | -9/Mines | Learned Materials stockpile data 3385 | -9/Mines | Build established: Mutant 3496 | -9/Mines | Deemed a non-threat by the Exiles lab entrance 3496 | -9/Mines | Discovered new exit (range 5) 3503 | -9/Mines | Entered Exiles 3558 | -9/Exiles | Met 8R-AWN 3580 | -9/Exiles | Met EX-HEX 3670 | -9/Exiles | Met EX-DEC 3820 | -9/Exiles | Met EX-BIN 3843 | -9/Exiles | Aligned with FarCom system 3844 | -9/Exiles | Given EX-Vault access code 3881 | -9/Exiles | Opened EX-Vault 3895 | -9/Exiles | Found Longsword +1 3900 | -9/Exiles | Found Cloak of Protection 3908 | -9/Exiles | Found Skeleton Box 3944 | -9/Exiles | Warned to stay clear of 0b10 Research branches 4040 | -9/Exiles | Discovered new exit (range 14) 4060 | -9/Exiles | Stole three prototypes: Cloak of Protection, Skeleton Box, Longsword +1 4060 | -9/Exiles | Entered Mines 4080 | -8/Mines | Core integrity fell below 20% 4302 | -8/Mines | Discovered exit to Materials (range 10) 4512 | -8/Mines | Destroyed self via exploding Plasma Injector Last Messages --------------- 04450_ T-07 Excavator destroyed. 04451_ G-47 Trooper destroyed. 04454_ Particle Gun destroyed. 04454_ Critical hit (Burn: +37). 04463_ R-06 Scavenger collects Aluminum Leg. 04464_ Imp. Treads destroyed. 04465_ Destroyed Aluminum Leg. 04465_ G-47 Trooper destroyed. 04465_ G-50 Soldier destroyed. 04467_ Dropped Lgt. Treads. 04469_ The unstable cave ceiling collapses. 04496_ S-10 Pest destroyed. 04496_ Destroyed Flight Unit. 04496_ S-10 Pest destroyed. 04498_ Acquired 8 matter. 04501_ The unstable cave ceiling collapses. 04501_ Acquired 4 matter. 04512_ Plasma Injector explodes. 04512_ G-47 Trooper destroyed. 04512_ Plasma Injector explodes. Map ----- +----------------------------------------------------+ | ###????????## #??????????????????? | | #??###### ### #??????????????????? | | # ### ## #### ####???????????????? | | = #??####?????????? | | ## #?? #?????????? | | ############# #??# #?????????? | | ##??????????# #??# #?????????? | | # ##?????????# #??# #?????????? | | # ## ###???????# #??# #?????????? | | ??#### ##??????# #### #?????????? | | ##??????## #??????# #?????????? | | #????????## #??????#########?????????? | | #???????# ##????????????????????????? | | #??????# ##?????????????????????????? | | #?????# #?????####?????????????????? | | # #????# #???### ##?????????????????? | | ?# #???# ##### ##????????????????? | | ??# ##???# #????????????????? | | ???###????######## #????????????????? | | ??????????????##### [ #######???????????? | | ###???????????#; #???????????? | | ##??????????#; #???????????? | | ##????????##; #???????????? | | #######??# #???????????? | | ## #???????????? | | #####?????# @ #???????????? | | ####??????????# #???????????? | | #?????????? g %= #### ####???????????? | | ##????????# ###[#??????# #??????????????? | | "##????????g???????????# #??????????????? | | "#????????????????????# #??????????????? | | ##????????????????????# #??????????????? | | "#????????????????????# #??????????????? | | ##???????????????????? ???????????????? | | #?????????????????????##???????????????? | | #??????????????????????????????????????? | | ##??????????????????????????????????????? | | ????????????????????????????????????????? | | ????????????????????????????????????????? | | ????????????????????????????????????????? | | ????????????????????????????????????????? | | ????????????????????????????????????????? | | ????????????????????????????????????????? | | ????????????????????????????????????????? | | ????????????????????????????????????????? | | ????????????????????????????????????????? | | ????????????????????????????????????????? | | ????????????????????????????????????????? | | ????????????????????????????????????????? | | ????????????????????????????????????????? | +----------------------------------------------------+ Best States ------------- Heat Dissipation 42 Energy Generation 10 Energy Capacity 250 Matter Stores 300 Matter Capacity 300 Sight Range 16 Terrain Scan Density 10 Armor Coverage 300 Resistance: EM 15 Evasion (%) 50 Targeting Accuracy 6 Recoil Reduction 2 Item Schematics ----------------- None Robot Schematics ------------------ None Fabricated ------------ Nothing Repaired ---------- Nothing Alien Tech Used ----------------- None Achievements -------------- None Challenges ------------ None Game ------ Seed PoweredCompanionReactor Manual? 0 Play Time 00:20:46 Cumulative 391.7 hours Start 2025.10.16 @ 04:31:23 End 2025.10.16 @ 04:51:38 Sessions 1 Manual Loads 0 Difficulty Rogue Special Mode None Game No. 513 Rogue 513 Adventurer 0 Explorer 0 Win Type - Total 12 Types 6/0/1/2/1/0/2/0/0/0 Lore% 88 Gallery% 84 Achievement% 71 Wizard Run 0 Options --------- Layout 0 ASCII 0 Keyboard 0 Movement Mouse Keybinds 0 Fullscreen 1 Font 24/Tamsyn Map View 76x50 Zoom Use 0% Tactical HUD 1 Map Filters NONE Filters NONE Steam 1 RUN: 4372035a-2917-4ffc-8cca-d2a893d8419d